Workbook

Sheet Bath Remodel Costs
B2: Bathroom Remodel Costs Worksheet
E4: Itemized Cost ($) | H4: Total Cost ($)
B5: Area | C5: Items | D5: Quantity | E5: Estimated | F5: Actual | G5: Difference | H5: Estimated | I5: Actual | J5: Difference
B6: Bath/Shower | C6: Tub, cast iron, 5', standard | D6: 1 | E6: $250.00 | F6: =RANDBETWEEN(E6+2,E6+20) -> $257.00 | G6: =tblCosts[[#This Row],[Estimated]]-tblCosts[[#This Row],[Actual]] -> ($7.00) | H6: =tblCosts[[#This Row],[Quantity]]*tblCosts[[#This Row],[Estimated]] -> $250.00 | I6: =tblCosts[[#This Row],[Quantity]]*tblCosts[[#This Row],[Actual]] -> $257.00 | J6: =tblCosts[[#This Row],[Estimated ]]-tblCosts[[#This Row],[Actual ]] -> ($7.00)
B7: Bath/Shower | C7: Shower doors, hinged, standard | D7: 1 | E7: $200.00 | F7: $202.00 | G7: =tblCosts[[#This Row],[Estimated]]-tblCosts[[#This Row],[Actual]] -> ($2.00) | H7: =tblCosts[[#This Row],[Quantity]]*tblCosts[[#This Row],[Estimated]] -> $200.00 | I7: =tblCosts[[#This Row],[Quantity]]*tblCosts[[#This Row],[Actual]] -> $202.00 | J7: =tblCosts[[#This Row],[Estimated ]]-tblCosts[[#This Row],[Actual ]] -> ($2.00)
B8: Bath/Shower | C8: Showerhead, standard | D8: 1 | E8: $50.00 | F8: $53.00 | G8: =tblCosts[[#This Row],[Estimated]]-tblCosts[[#This Row],[Actual]] -> ($3.00) | H8: =tblCosts[[#This Row],[Quantity]]*tblCosts[[#This Row],[Estimated]] -> $50.00 | I8: =tblCosts[[#This Row],[Quantity]]*tblCosts[[#This Row],[Actual]] -> $53.00 | J8: =tblCosts[[#This Row],[Estimated ]]-tblCosts[[#This Row],[Actual ]] -> ($3.00)
B9: Bath/Shower | C9: Tub wall surround, standard | D9: 1 | E9: $200.00 | F9: $214.00 | G9: =tblCosts[[#This Row],[Estimated]]-tblCosts[[#This Row],[Actual]] -> ($14.00) | H9: =tblCosts[[#This Row],[Quantity]]*tblCosts[[#This Row],[Estimated]] -> $200.00 | I9: =tblCosts[[#This Row],[Quantity]]*tblCosts[[#This Row],[Actual]] -> $214.00 | J9: =tblCosts[[#This Row],[Estimated ]]-tblCosts[[#This Row],[Actual ]] -> ($14.00)
B10: Cabinets | C10: Medicine cabinet 24'', deluxe | D10: 1 | E10: $200.00 | F10: $205.00 | G10: =tblCosts[[#This Row],[Estimated]]-tblCosts[[#This Row],[Actual]] -> ($5.00) | H10: =tblCosts[[#This Row],[Quantity]]*tblCosts[[#This Row],[Estimated]] -> $200.00 | I10: =tblCosts[[#This Row],[Quantity]]*tblCosts[[#This Row],[Actual]] -> $205.00 | J10: =tblCosts[[#This Row],[Estimated ]]-tblCosts[[#This Row],[Actual ]] -> ($5.00)
B11: Cabinets | C11: Modular vanity 30'', standard | D11: 2 | E11: $100.00 | F11: $102.00 | G11: =tblCosts[[#This Row],[Estimated]]-tblCosts[[#This Row],[Actual]] -> ($2.00) | H11: =tblCosts[[#This Row],[Quantity]]*tblCosts[[#This Row],[Estimated]] -> $200.00 | I11: =tblCosts[[#This Row],[Quantity]]*tblCosts[[#This Row],[Actual]] -> $204.00 | J11: =tblCosts[[#This Row],[Estimated ]]-tblCosts[[#This Row],[Actual ]] -> ($4.00)
B12: Countertops | C12: Ceramic tile, deluxe (qty. in lin. ft.) | D12: 5 | E12: $22.50 | F12: $29.00 | G12: =tblCosts[[#This Row],[Estimated]]-tblCosts[[#This Row],[Actual]] -> ($6.50) | H12: =tblCosts[[#This Row],[Quantity]]*tblCosts[[#This Row],[Estimated]] -> $112.50 | I12: =tblCosts[[#This Row],[Quantity]]*tblCosts[[#This Row],[Actual]] -> $145.00 | J12: =tblCosts[[#This Row],[Estimated ]]-tblCosts[[#This Row],[Actual ]] -> ($32.50)
B13: Faucets | C13: Faucet, bathtub, standard | D13: 1 | E13: $90.00 | F13: $105.00 | G13: =tblCosts[[#This Row],[Estimated]]-tblCosts[[#This Row],[Actual]] -> ($15.00) | H13: =tblCosts[[#This Row],[Quantity]]*tblCosts[[#This Row],[Estimated]] -> $90.00 | I13: =tblCosts[[#This Row],[Quantity]]*tblCosts[[#This Row],[Actual]] -> $105.00 | J13: =tblCosts[[#This Row],[Estimated ]]-tblCosts[[#This Row],[Actual ]] -> ($15.00)
B14: Faucets | C14: Faucet, shower, single handle, standard | D14: 1 | E14: $115.00 | F14: $122.00 | G14: =tblCosts[[#This Row],[Estimated]]-tblCosts[[#This Row],[Actual]] -> ($7.00) | H14: =tblCosts[[#This Row],[Quantity]]*tblCosts[[#This Row],[Estimated]] -> $115.00 | I14: =tblCosts[[#This Row],[Quantity]]*tblCosts[[#This Row],[Actual]] -> $122.00 | J14: =tblCosts[[#This Row],[Estimated ]]-tblCosts[[#This Row],[Actual ]] -> ($7.00)
B15: Faucets | C15: Sink faucet, standard | D15: 1 | E15: $95.00 | F15: $114.00 | G15: =tblCosts[[#This Row],[Estimated]]-tblCosts[[#This Row],[Actual]] -> ($19.00) | H15: =tblCosts[[#This Row],[Quantity]]*tblCosts[[#This Row],[Estimated]] -> $95.00 | I15: =tblCosts[[#This Row],[Quantity]]*tblCosts[[#This Row],[Actual]] -> $114.00 | J15: =tblCosts[[#This Row],[Estimated ]]-tblCosts[[#This Row],[Actual ]] -> ($19.00)
B16: Flooring | C16: Ceramic tile, standard (qty. in sq. ft.) | D16: 35 | E16: $12.00 | F16: $31.00 | G16: =tblCosts[[#This Row],[Estimated]]-tblCosts[[#This Row],[Actual]] -> ($19.00) | H16: =tblCosts[[#This Row],[Quantity]]*tblCosts[[#This Row],[Estimated]] -> $420.00 | I16: =tblCosts[[#This Row],[Quantity]]*tblCosts[[#This Row],[Actual]] -> $1,085.00 | J16: =tblCosts[[#This Row],[Estimated ]]-tblCosts[[#This Row],[Actual ]] -> ($665.00)
B17: Hardware | C17: Towel bar, standard | D17: 2 | E17: $15.00 | F17: $19.00 | G17: =tblCosts[[#This Row],[Estimated]]-tblCosts[[#This Row],[Actual]] -> ($4.00) | H17: =tblCosts[[#This Row],[Quantity]]*tblCosts[[#This Row],[Estimated]] -> $30.00 | I17: =tblCosts[[#This Row],[Quantity]]*tblCosts[[#This Row],[Actual]] -> $38.00 | J17: =tblCosts[[#This Row],[Estimated ]]-tblCosts[[#This Row],[Actual ]] -> ($8.00)
B18: Hardware | C18: Toilet Paper holder | D18: 1 | E18: $10.00 | F18: $23.00 | G18: =tblCosts[[#This Row],[Estimated]]-tblCosts[[#This Row],[Actual]] -> ($13.00) | H18: =tblCosts[[#This Row],[Quantity]]*tblCosts[[#This Row],[Estimated]] -> $10.00 | I18: =tblCosts[[#This Row],[Quantity]]*tblCosts[[#This Row],[Actual]] -> $23.00 | J18: =tblCosts[[#This Row],[Estimated ]]-tblCosts[[#This Row],[Actual ]] -> ($13.00)
B19: Lighting | C19: Recessed lights, standard | D19: 4 | E19: $25.00 | F19: $34.00 | G19: =tblCosts[[#This Row],[Estimated]]-tblCosts[[#This Row],[Actual]] -> ($9.00) | H19: =tblCosts[[#This Row],[Quantity]]*tblCosts[[#This Row],[Estimated]] -> $100.00 | I19: =tblCosts[[#This Row],[Quantity]]*tblCosts[[#This Row],[Actual]] -> $136.00 | J19: =tblCosts[[#This Row],[Estimated ]]-tblCosts[[#This Row],[Actual ]] -> ($36.00)
B20: Sinks | C20: Lavatory, standard | D20: 2 | E20: $60.00 | F20: $80.00 | G20: =tblCosts[[#This Row],[Estimated]]-tblCosts[[#This Row],[Actual]] -> ($20.00) | H20: =tblCosts[[#This Row],[Quantity]]*tblCosts[[#This Row],[Estimated]] -> $120.00 | I20: =tblCosts[[#This Row],[Quantity]]*tblCosts[[#This Row],[Actual]] -> $160.00 | J20: =tblCosts[[#This Row],[Estimated ]]-tblCosts[[#This Row],[Actual ]] -> ($40.00)
B21: Toilets/Bidets | C21: Toilet, standard | D21: 1 | E21: $120.00 | F21: $122.00 | G21: =tblCosts[[#This Row],[Estimated]]-tblCosts[[#This Row],[Actual]] -> ($2.00) | H21: =tblCosts[[#This Row],[Quantity]]*tblCosts[[#This Row],[Estimated]] -> $120.00 | I21: =tblCosts[[#This Row],[Quantity]]*tblCosts[[#This Row],[Actual]] -> $122.00 | J21: =tblCosts[[#This Row],[Estimated ]]-tblCosts[[#This Row],[Actual ]] -> ($2.00)
B22: Ventilation | C22: Exhaust fan/light, standard | D22: 1 | E22: $60.00 | F22: $79.00 | G22: =tblCosts[[#This Row],[Estimated]]-tblCosts[[#This Row],[Actual]] -> ($19.00) | H22: =tblCosts[[#This Row],[Quantity]]*tblCosts[[#This Row],[Estimated]] -> $60.00 | I22: =tblCosts[[#This Row],[Quantity]]*tblCosts[[#This Row],[Actual]] -> $79.00 | J22: =tblCosts[[#This Row],[Estimated ]]-tblCosts[[#This Row],[Actual ]] -> ($19.00)
B23: Walls | C23: Designer wallpaper, deluxe (qty. in sq. ft.) | D23: 192 | E23: $0.95 | F23: $10.00 | G23: =tblCosts[[#This Row],[Estimated]]-tblCosts[[#This Row],[Actual]] -> ($9.05) | H23: =tblCosts[[#This Row],[Quantity]]*tblCosts[[#This Row],[Estimated]] -> $182.40 | I23: =tblCosts[[#This Row],[Quantity]]*tblCosts[[#This Row],[Actual]] -> $1,920.00 | J23: =tblCosts[[#This Row],[Estimated ]]-tblCosts[[#This Row],[Actual ]] -> ($1,737.60)
B24: Windows | C24: Wood casement, deluxe | D24: 2 | E24: $120.00 | F24: $128.00 | G24: =tblCosts[[#This Row],[Estimated]]-tblCosts[[#This Row],[Actual]] -> ($8.00) | H24: =tblCosts[[#This Row],[Quantity]]*tblCosts[[#This Row],[Estimated]] -> $240.00 | I24: =tblCosts[[#This Row],[Quantity]]*tblCosts[[#This Row],[Actual]] -> $256.00 | J24: =tblCosts[[#This Row],[Estimated ]]-tblCosts[[#This Row],[Actual ]] -> ($16.00)
B25: Other | D25: 1 | E25: $20.00 | F25: $40.00 | G25: =tblCosts[[#This Row],[Estimated]]-tblCosts[[#This Row],[Actual]] -> ($20.00) | H25: =tblCosts[[#This Row],[Quantity]]*tblCosts[[#This Row],[Estimated]] -> $20.00 | I25: =tblCosts[[#This Row],[Quantity]]*tblCosts[[#This Row],[Actual]] -> $40.00 | J25: =tblCosts[[#This Row],[Estimated ]]-tblCosts[[#This Row],[Actual ]] -> ($20.00)
C26: Subtotal | E26: =SUBTOTAL(109,tblCosts[Estimated]) -> $1,765.45 | F26: =SUBTOTAL(109,tblCosts[Actual]) -> $1,969.00 | G26: =SUBTOTAL(109,tblCosts[Difference]) -> ($203.55) | H26: =SUBTOTAL(109,tblCosts[[Estimated ]]) -> $2,814.90 | I26: =SUBTOTAL(109,tblCosts[[Actual ]]) -> $5,480.00 | J26: =SUBTOTAL(109,tblCosts[[Difference ]]) -> ($2,665.10)
C27: Unexpected Costs (add 30% estimated) | E27: =tblCosts[[#Totals],[Estimated]]*0.3 -> $529.64 | H27: =tblCosts[[#Totals],[Estimated ]]*0.3 -> $844.47
C28: Total | E28: =SUM(E26:E27) -> $2,295.09 | H28: =SUM(tblCosts[[#Totals],[Estimated ]],Overage) -> $3,659.37
